[Event "Early-Titled-Tuesday-Blitz-April-23-2024"]
[Site "Chess.com"]
[Date "2024.04.23"]
[Round "8"]
[White "WindWhistler11"]
[Black "GeorgiosSouleidis"]
[Result "1-0"]
[WhiteElo "2538"]
[BlackElo "2643"]
[TimeControl "180+1"]
[EndTime "9:32:58 PDT"]
[Termination "WindWhistler11 won by resignation"]

1. Nf3 {[%clk 0:03:00.9]} 1... Nf6 {[%clk 0:03:00]} 2. g3 {[%clk 0:02:57.8]}
2... g6 {[%clk 0:03:00.5]} 3. Bg2 {[%clk 0:02:56.7]} 3... Bg7 {[%clk 0:03:01]}
4. b4 {[%clk 0:02:55.1]} 4... d5 {[%clk 0:02:54.7]} 5. Bb2 {[%clk 0:02:50.8]}
5... O-O {[%clk 0:02:54.4]} 6. O-O {[%clk 0:02:49.6]} 6... Re8 {[%clk
0:02:50.8]} 7. d3 {[%clk 0:02:42.6]} 7... Nbd7 {[%clk 0:02:49.2]} 8. Nfd2 {[%clk
0:02:38.2]} 8... e5 {[%clk 0:02:45.7]} 9. c4 {[%clk 0:02:35.5]} 9... c6 {[%clk
0:02:40]} 10. a4 {[%clk 0:02:33.7]} 10... a6 {[%clk 0:02:38.6]} 11. cxd5 {[%clk
0:02:29.4]} 11... cxd5 {[%clk 0:02:31]} 12. Nc3 {[%clk 0:02:26.5]} 12... Nf8
{[%clk 0:02:28.8]} 13. e4 {[%clk 0:02:13.4]} 13... Be6 {[%clk 0:02:19.2]} 14.
Nb3 {[%clk 0:02:03.3]} 14... dxe4 {[%clk 0:02:14]} 15. Nxe4 {[%clk 0:02:01.9]}
15... Nxe4 {[%clk 0:02:09.7]} 16. Bxe4 {[%clk 0:02:01.6]} 16... Bd5 {[%clk
0:01:57.2]} 17. Nc5 {[%clk 0:01:56.5]} 17... Rb8 {[%clk 0:01:51.9]} 18. a5
{[%clk 0:01:48.3]} 18... Ne6 {[%clk 0:01:50.5]} 19. Rc1 {[%clk 0:01:36.6]} 19...
Qd6 {[%clk 0:01:42.8]} 20. Qf3 {[%clk 0:01:26.6]} 20... Ng5 {[%clk 0:01:32]} 21.
Qg2 {[%clk 0:01:26.9]} 21... Nxe4 {[%clk 0:01:31.7]} 22. dxe4 {[%clk 0:01:27.2]}
22... Bc6 {[%clk 0:01:31.4]} 23. Rfd1 {[%clk 0:01:27.9]} 23... Qe7 {[%clk
0:01:30.5]} 24. Nxa6 {[%clk 0:01:04.8]} 24... bxa6 {[%clk 0:01:30.2]} 25. Rxc6
{[%clk 0:01:04.8]} 25... Qxb4 {[%clk 0:01:30.6]} 26. Bc3 {[%clk 0:00:57.9]}
26... Qb3 {[%clk 0:01:19]} 27. Qf3 {[%clk 0:00:55.2]} 27... Rec8 {[%clk
0:01:07]} 28. Rdd6 {[%clk 0:00:38.6]} 28... Bf8 {[%clk 0:00:48.1]} 29. Rf6
{[%clk 0:00:32.2]} 29... Rxc6 {[%clk 0:00:39]} 30. Rxc6 {[%clk 0:00:31.8]} 30...
Bb4 {[%clk 0:00:21]} 31. Kg2 {[%clk 0:00:27.6]} 31... Bxc3 {[%clk 0:00:20.1]}
32. Rxc3 {[%clk 0:00:28]} 32... Qb5 {[%clk 0:00:16.7]} 33. Rc7 {[%clk
0:00:26.7]} 33... Rf8 {[%clk 0:00:16.8]} 34. Qc3 {[%clk 0:00:27.2]} 34... Qe2
{[%clk 0:00:10]} 35. Qxe5 {[%clk 0:00:25.6]} 35... Rd8 {[%clk 0:00:05.9]} 36.
Re7 {[%clk 0:00:25.1]} 36... Rf8 {[%clk 0:00:04.4]} 37. Re8 {[%clk 0:00:25.2]}
37... Rxe8 {[%clk 0:00:03.4]} 38. Qxe8+ {[%clk 0:00:26.1]} 38... Kg7 {[%clk
0:00:04.3]} 39. Qe5+ {[%clk 0:00:26.7]} 39... Kg8 {[%clk 0:00:04.5]} 40. Qd4
{[%clk 0:00:17.8]} 40... h5 {[%clk 0:00:03.8]} 41. h4 {[%clk 0:00:17.4]} 41...
Kh7 {[%clk 0:00:03.4]} 42. Qd5 {[%clk 0:00:16.6]} 42... Kg8 {[%clk 0:00:02.9]}
43. e5 {[%clk 0:00:11.2]} 43... Kg7 {[%clk 0:00:02.7]} 44. Qd4 {[%clk
0:00:10.7]} 44... Kh7 {[%clk 0:00:02.7]} 45. Qf4 {[%clk 0:00:10.2]} 45... Kg8
{[%clk 0:00:01.8]} 46. Qd4 {[%clk 0:00:07.4]} 46... Qb5 {[%clk 0:00:02]} 47.
Qd8+ {[%clk 0:00:06.8]} 47... Kh7 {[%clk 0:00:02.3]} 48. Qf6 {[%clk 0:00:07.2]}
48... Kg8 {[%clk 0:00:02.3]} 49. e6 {[%clk 0:00:07.2]} 49... fxe6 {[%clk
0:00:01.4]} 50. Qxg6+ {[%clk 0:00:07.3]} 50... Kf8 {[%clk 0:00:02]} 51. Qf6+
{[%clk 0:00:08]} 51... Kg8 {[%clk 0:00:02.6]} 52. Qxe6+ {[%clk 0:00:08.4]} 52...
Kg7 {[%clk 0:00:03.2]} 53. Qe7+ {[%clk 0:00:08.6]} 53... Kg6 {[%clk 0:00:03.4]}
54. Qg5+ {[%clk 0:00:07.5]} 54... Qxg5 {[%clk 0:00:03.6]} 55. hxg5 {[%clk
0:00:08.4]} 55... Kxg5 {[%clk 0:00:04.5]} 56. Kh3 {[%clk 0:00:09.1]} 56... Kf5
{[%clk 0:00:03.6]} 57. Kh4 {[%clk 0:00:09.2]} 57... Kg6 {[%clk 0:00:03.8]} 58.
f4 {[%clk 0:00:08.4]} 58... Kh6 {[%clk 0:00:04.5]} 59. f5 {[%clk 0:00:08.8]} 1-0

[Event "Early-Titled-Tuesday-Blitz-April-23-2024"]
[Site "Chess.com"]
[Date "2024.04.23"]
[Round "8"]
[White "Zavgorodniy_Sergiy"]
[Black "Raskolnikov6"]
[Result "1-0"]
[WhiteElo "2589"]
[BlackElo "2389"]
[TimeControl "180+1"]
[EndTime "9:33:05 PDT"]
[Termination "Zavgorodniy_Sergiy won by checkmate"]

1. d4 {[%clk 0:03:00.9]} 1... d5 {[%clk 0:02:55.8]} 2. Nc3 {[%clk 0:03:00.2]}
2... Nf6 {[%clk 0:02:54.4]} 3. Bf4 {[%clk 0:02:58.9]} 3... c5 {[%clk 0:02:53.9]}
4. e3 {[%clk 0:02:54.4]} 4... cxd4 {[%clk 0:02:48.5]} 5. exd4 {[%clk 0:02:54.3]}
5... a6 {[%clk 0:02:45.8]} 6. Nf3 {[%clk 0:02:50.6]} 6... Nc6 {[%clk 0:02:46.2]}
7. h3 {[%clk 0:02:42.9]} 7... Bf5 {[%clk 0:02:45.8]} 8. Be2 {[%clk 0:02:40.1]}
8... h6 {[%clk 0:02:45.1]} 9. O-O {[%clk 0:02:38]} 9... e6 {[%clk 0:02:45.4]}
10. Re1 {[%clk 0:02:30.6]} 10... Bd6 {[%clk 0:02:44.9]} 11. Bxd6 {[%clk
0:02:26.6]} 11... Qxd6 {[%clk 0:02:44.6]} 12. Bd3 {[%clk 0:02:27.1]} 12... Bxd3
{[%clk 0:02:42.9]} 13. Qxd3 {[%clk 0:02:28]} 13... O-O {[%clk 0:02:42]} 14. a3
{[%clk 0:02:15.7]} 14... Rac8 {[%clk 0:02:41.7]} 15. Ne2 {[%clk 0:02:10.9]}
15... Ne4 {[%clk 0:02:40]} 16. c3 {[%clk 0:02:09]} 16... b5 {[%clk 0:02:39.2]}
17. Nc1 {[%clk 0:01:59]} 17... Na5 {[%clk 0:02:34]} 18. Qe2 {[%clk 0:01:55.5]}
18... Nc4 {[%clk 0:02:28.6]} 19. Nd3 {[%clk 0:01:55.6]} 19... Rfe8 {[%clk
0:02:23.1]} 20. Rad1 {[%clk 0:01:28.6]} 20... f6 {[%clk 0:02:21.7]} 21. Nh2
{[%clk 0:01:25.4]} 21... a5 {[%clk 0:02:18.1]} 22. Qh5 {[%clk 0:01:19.9]} 22...
Re7 {[%clk 0:01:44.1]} 23. Re2 {[%clk 0:01:09.1]} 23... Rd8 {[%clk 0:01:23.6]}
24. Nf1 {[%clk 0:01:05.6]} 24... Ng5 {[%clk 0:01:16.9]} 25. Rde1 {[%clk
0:01:02.2]} 25... Rde8 {[%clk 0:01:08.1]} 26. h4 {[%clk 0:00:45.2]} 26... Nf7
{[%clk 0:00:57.4]} 27. Ng3 {[%clk 0:00:44.6]} 27... Qc7 {[%clk 0:00:40.5]} 28.
Qg4 {[%clk 0:00:42.8]} 28... f5 {[%clk 0:00:36.9]} 29. Qf4 {[%clk 0:00:34.2]}
29... Qxf4 {[%clk 0:00:34.1]} 30. Nxf4 {[%clk 0:00:35.1]} 30... Nd8 {[%clk
0:00:33.4]} 31. Ng6 {[%clk 0:00:29.7]} 31... Rd7 {[%clk 0:00:30]} 32. Nxf5
{[%clk 0:00:27.8]} 32... Nc6 {[%clk 0:00:21.7]} 33. Rxe6 {[%clk 0:00:19.4]}
33... Rxe6 {[%clk 0:00:20.7]} 34. Rxe6 {[%clk 0:00:20.3]} 34... Nd8 {[%clk
0:00:15.9]} 35. Ra6 {[%clk 0:00:18.4]} 35... Nxb2 {[%clk 0:00:15.5]} 36. h5
{[%clk 0:00:17]} 36... Nc4 {[%clk 0:00:14.5]} 37. Ne3 {[%clk 0:00:14]} 37...
Nxa3 {[%clk 0:00:12.5]} 38. Rxa5 {[%clk 0:00:13.2]} 38... Nc4 {[%clk 0:00:12.8]}
39. Rxb5 {[%clk 0:00:13.1]} 39... Kf7 {[%clk 0:00:11.9]} 40. Rxd5 {[%clk
0:00:12.9]} 40... Rxd5 {[%clk 0:00:09.8]} 41. Nxd5 {[%clk 0:00:13.8]} 41... Ne6
{[%clk 0:00:09.8]} 42. Ne3 {[%clk 0:00:13]} 42... Nd2 {[%clk 0:00:07]} 43. g4
{[%clk 0:00:11.4]} 43... Ne4 {[%clk 0:00:06.8]} 44. d5 {[%clk 0:00:10.1]} 44...
N6c5 {[%clk 0:00:06.3]} 45. c4 {[%clk 0:00:10]} 45... Kf6 {[%clk 0:00:05.6]} 46.
Kg2 {[%clk 0:00:10]} 46... Kg5 {[%clk 0:00:05.1]} 47. f3 {[%clk 0:00:09.2]}
47... Nd2 {[%clk 0:00:04.6]} 48. Nf1 {[%clk 0:00:08.2]} 48... Nxc4 {[%clk
0:00:03.6]} 49. Ng3 {[%clk 0:00:07.5]} 49... Kf6 {[%clk 0:00:03.7]} 50. Ne4+
{[%clk 0:00:07.7]} 50... Nxe4 {[%clk 0:00:03.8]} 51. fxe4 {[%clk 0:00:08.6]}
51... Kg5 {[%clk 0:00:03.7]} 52. Kf3 {[%clk 0:00:08.6]} 52... Nd2+ {[%clk
0:00:03.8]} 53. Ke3 {[%clk 0:00:08.6]} 53... Nc4+ {[%clk 0:00:03.4]} 54. Kd4
{[%clk 0:00:09]} 54... Nd6 {[%clk 0:00:04.1]} 55. e5 {[%clk 0:00:09.2]} 55...
Nb5+ {[%clk 0:00:04.5]} 56. Kc5 {[%clk 0:00:09]} 56... Nc7 {[%clk 0:00:05.1]}
57. d6 {[%clk 0:00:09.6]} 57... Ne6+ {[%clk 0:00:05.8]} 58. Kd5 {[%clk
0:00:10.3]} 58... Nf4+ {[%clk 0:00:06.2]} 59. Ke4 {[%clk 0:00:10.6]} 59... Kxg4
{[%clk 0:00:07]} 60. Nxf4 {[%clk 0:00:09.9]} 60... g5 {[%clk 0:00:06.7]} 61. d7
{[%clk 0:00:10.3]} 61... gxf4 {[%clk 0:00:06.8]} 62. d8=Q {[%clk 0:00:11.2]}
62... f3 {[%clk 0:00:07.3]} 63. Qg8+ {[%clk 0:00:11.7]} 63... Kxh5 {[%clk
0:00:08.1]} 64. Kxf3 {[%clk 0:00:11.3]} 64... Kh4 {[%clk 0:00:08.2]} 65. Qg4#
{[%clk 0:00:11.6]} 1-0

[Event "Early-Titled-Tuesday-Blitz-April-23-2024"]
[Site "Chess.com"]
[Date "2024.04.23"]
[Round "8"]
[White "Alenzer"]
[Black "InitiatingASC"]
[Result "1/2-1/2"]
[WhiteElo "2224"]
[BlackElo "2339"]
[TimeControl "180+1"]
[EndTime "9:33:08 PDT"]
[Termination "Game drawn - timeout vs insufficient material"]

1. e4 {[%clk 0:02:58.8]} 1... c5 {[%clk 0:02:59.8]} 2. Nf3 {[%clk 0:02:57.3]}
2... Nc6 {[%clk 0:02:59.9]} 3. d4 {[%clk 0:02:57.1]} 3... cxd4 {[%clk
0:03:00.2]} 4. Nxd4 {[%clk 0:02:57]} 4... Nf6 {[%clk 0:03:00.7]} 5. Nc3 {[%clk
0:02:56.3]} 5... e5 {[%clk 0:03:00.7]} 6. Ndb5 {[%clk 0:02:56.6]} 6... h6 {[%clk
0:03:01.1]} 7. Nd6+ {[%clk 0:02:56.2]} 7... Bxd6 {[%clk 0:03:01.3]} 8. Qxd6
{[%clk 0:02:56.8]} 8... Qe7 {[%clk 0:03:02.2]} 9. Nb5 {[%clk 0:02:49.8]} 9...
Qxd6 {[%clk 0:02:44.6]} 10. Nxd6+ {[%clk 0:02:48.7]} 10... Ke7 {[%clk 0:02:45]}
11. Nxc8+ {[%clk 0:02:35.6]} 11... Rhxc8 {[%clk 0:02:41.7]} 12. Bd3 {[%clk
0:02:35.8]} 12... Nd4 {[%clk 0:02:41.7]} 13. Kd1 {[%clk 0:02:34.2]} 13... d5
{[%clk 0:02:38.5]} 14. f3 {[%clk 0:02:31.6]} 14... dxe4 {[%clk 0:02:38.1]} 15.
fxe4 {[%clk 0:02:27.6]} 15... Ng4 {[%clk 0:02:35.7]} 16. Rf1 {[%clk 0:02:07.7]}
16... Nxh2 {[%clk 0:02:31.7]} 17. Re1 {[%clk 0:02:06]} 17... Rc6 {[%clk
0:02:25.3]} 18. Be3 {[%clk 0:02:05.8]} 18... Rd8 {[%clk 0:02:12.4]} 19. Kd2
{[%clk 0:01:59]} 19... Nxc2 {[%clk 0:02:06]} 20. Bg1 {[%clk 0:01:37.4]} 20...
Nxe1 {[%clk 0:01:58.4]} 21. Rxe1 {[%clk 0:01:35.6]} 21... Ng4 {[%clk 0:01:50.1]}
22. Ke2 {[%clk 0:01:34.9]} 22... a6 {[%clk 0:01:41.6]} 23. b4 {[%clk 0:01:34.7]}
23... Ke8 {[%clk 0:01:30.3]} 24. a4 {[%clk 0:01:28.5]} 24... Rc3 {[%clk
0:01:24.7]} 25. Rd1 {[%clk 0:01:24.6]} 25... Nf6 {[%clk 0:01:19.2]} 26. Bc5
{[%clk 0:01:16.8]} 26... Rb3 {[%clk 0:01:06.1]} 27. Rd2 {[%clk 0:00:53.1]} 27...
Rbxd3 {[%clk 0:01:02.8]} 28. Rxd3 {[%clk 0:00:52.9]} 28... Rxd3 {[%clk
0:01:03.7]} 29. Kxd3 {[%clk 0:00:53.3]} 29... Kd7 {[%clk 0:01:04.1]} 30. b5
{[%clk 0:00:50.4]} 30... axb5 {[%clk 0:01:03.4]} 31. axb5 {[%clk 0:00:50.6]}
31... Ke6 {[%clk 0:01:00.9]} 32. Bf8 {[%clk 0:00:50.3]} 32... Ne8 {[%clk
0:00:58.3]} 33. g4 {[%clk 0:00:46.4]} 33... f6 {[%clk 0:00:52.4]} 34. Kc4 {[%clk
0:00:44.6]} 34... Kd7 {[%clk 0:00:39.3]} 35. Kc5 {[%clk 0:00:41.5]} 35... Kc7
{[%clk 0:00:34.2]} 36. b6+ {[%clk 0:00:34.5]} 36... Kd7 {[%clk 0:00:30.6]} 37.
Kd5 {[%clk 0:00:34.6]} 37... g6 {[%clk 0:00:15.3]} 38. Bxh6 {[%clk 0:00:33.3]}
38... Ke7 {[%clk 0:00:13.2]} 39. Be3 {[%clk 0:00:29.4]} 39... Kf7 {[%clk
0:00:11.2]} 40. Bc5 {[%clk 0:00:27.9]} 40... Ng7 {[%clk 0:00:10.6]} 41. Kd6
{[%clk 0:00:25.4]} 41... Ne6 {[%clk 0:00:10.6]} 42. Be3 {[%clk 0:00:23.5]} 42...
Nd4 {[%clk 0:00:08.5]} 43. Kc7 {[%clk 0:00:20.9]} 43... Ke6 {[%clk 0:00:07.4]}
44. Kxb7 {[%clk 0:00:21.1]} 44... Nb5 {[%clk 0:00:07]} 45. Kc6 {[%clk
0:00:20.3]} 45... Nd6 {[%clk 0:00:06.2]} 46. b7 {[%clk 0:00:19.9]} 46... Nxb7
{[%clk 0:00:06.1]} 47. Kxb7 {[%clk 0:00:20.8]} 47... f5 {[%clk 0:00:06.8]} 48.
exf5+ {[%clk 0:00:17.5]} 48... gxf5 {[%clk 0:00:06.7]} 49. g5 {[%clk 0:00:17.9]}
49... f4 {[%clk 0:00:06.9]} 50. Bf2 {[%clk 0:00:07.1]} 50... e4 {[%clk 0:00:07]}
51. Kc6 {[%clk 0:00:07.3]} 51... e3 {[%clk 0:00:07.4]} 52. Bg1 {[%clk
0:00:06.3]} 52... Kf5 {[%clk 0:00:07.2]} 53. Kd5 {[%clk 0:00:05.8]} 53... Kxg5
{[%clk 0:00:06.7]} 54. Ke4 {[%clk 0:00:05.2]} 54... e2 {[%clk 0:00:02.5]} 55.
Bf2 {[%clk 0:00:05.5]} 55... Kg4 {[%clk 0:00:02.6]} 56. Be1 {[%clk 0:00:03.6]}
1/2-1/2

[Event "Early-Titled-Tuesday-Blitz-April-23-2024"]
[Site "Chess.com"]
[Date "2024.04.23"]
[Round "8"]
[White "JJDAREK"]
[Black "Happy1712Drummer"]
[Result "1-0"]
[WhiteElo "2360"]
[BlackElo "2497"]
[TimeControl "180+1"]
[EndTime "9:33:12 PDT"]
[Termination "JJDAREK won by resignation"]

1. d4 {[%clk 0:03:00.9]} 1... d5 {[%clk 0:02:59.6]} 2. c4 {[%clk 0:03:00.4]}
2... e6 {[%clk 0:03:00.3]} 3. Nf3 {[%clk 0:02:59.9]} 3... a6 {[%clk 0:03:00.7]}
4. g3 {[%clk 0:02:57.7]} 4... Nf6 {[%clk 0:02:51.1]} 5. Bg2 {[%clk 0:02:57.5]}
5... Bd6 {[%clk 0:02:51.4]} 6. O-O {[%clk 0:02:57.2]} 6... O-O {[%clk
0:02:39.7]} 7. c5 {[%clk 0:02:54.1]} 7... Be7 {[%clk 0:02:39.6]} 8. Bf4 {[%clk
0:02:30.4]} 8... b6 {[%clk 0:02:39.6]} 9. cxb6 {[%clk 0:02:20]} 9... cxb6 {[%clk
0:02:38.7]} 10. Nc3 {[%clk 0:02:14.5]} 10... b5 {[%clk 0:02:35.9]} 11. Rc1
{[%clk 0:02:09.2]} 11... Bb7 {[%clk 0:02:27.6]} 12. Ne5 {[%clk 0:02:01.6]} 12...
Nbd7 {[%clk 0:02:21.1]} 13. a4 {[%clk 0:01:51]} 13... b4 {[%clk 0:02:20.4]} 14.
Na2 {[%clk 0:01:49.1]} 14... Nxe5 {[%clk 0:02:18.3]} 15. Bxe5 {[%clk 0:01:50]}
15... Nd7 {[%clk 0:02:18.7]} 16. Bf4 {[%clk 0:01:48.9]} 16... Rc8 {[%clk
0:02:07.4]} 17. Qd2 {[%clk 0:01:36]} 17... Qb6 {[%clk 0:02:05.9]} 18. b3 {[%clk
0:01:32.6]} 18... Nb8 {[%clk 0:01:52.7]} 19. Bxb8 {[%clk 0:01:22.8]} 19... Rxb8
{[%clk 0:01:49.9]} 20. Rc2 {[%clk 0:01:22.8]} 20... Rfc8 {[%clk 0:01:43]} 21.
Rfc1 {[%clk 0:01:22.6]} 21... Bc6 {[%clk 0:01:25.7]} 22. e3 {[%clk 0:01:16.3]}
22... a5 {[%clk 0:01:24.5]} 23. Bf1 {[%clk 0:01:15.2]} 23... Rc7 {[%clk
0:01:19]} 24. Bb5 {[%clk 0:01:12.5]} 24... Rbc8 {[%clk 0:01:18.4]} 25. Bxc6
{[%clk 0:01:09.6]} 25... Rxc6 {[%clk 0:01:18.7]} 26. Rxc6 {[%clk 0:01:10.1]}
26... Rxc6 {[%clk 0:01:18.5]} 27. Rxc6 {[%clk 0:01:10.8]} 27... Qxc6 {[%clk
0:01:18.8]} 28. Qc1 {[%clk 0:01:08.4]} 28... Qb7 {[%clk 0:01:13.1]} 29. Qc2
{[%clk 0:01:05.7]} 29... g6 {[%clk 0:01:03.8]} 30. Nc1 {[%clk 0:01:05.7]} 30...
Kg7 {[%clk 0:00:58.3]} 31. Nd3 {[%clk 0:01:05.8]} 31... Qa6 {[%clk 0:00:51.3]}
32. Kg2 {[%clk 0:01:05.5]} 32... Bd6 {[%clk 0:00:48.4]} 33. h4 {[%clk
0:01:05.4]} 33... h5 {[%clk 0:00:48.1]} 34. Kf1 {[%clk 0:00:37.5]} 34... e5
{[%clk 0:00:41.4]} 35. dxe5 {[%clk 0:00:36.8]} 35... Bxe5 {[%clk 0:00:42.3]} 36.
Kg2 {[%clk 0:00:35.3]} 36... Bc3 {[%clk 0:00:42.3]} 37. Nf4 {[%clk 0:00:31.6]}
37... Qc6 {[%clk 0:00:38.9]} 38. Kh2 {[%clk 0:00:27.9]} 38... Qd6 {[%clk
0:00:30.8]} 39. Qd3 {[%clk 0:00:27.1]} 39... d4 {[%clk 0:00:23.6]} 40. exd4
{[%clk 0:00:18.1]} 40... Bxd4 {[%clk 0:00:20.2]} 41. Kg2 {[%clk 0:00:15.7]}
41... Qc6+ {[%clk 0:00:15.8]} 42. Qf3 {[%clk 0:00:15.6]} 42... Qc7 {[%clk
0:00:06.4]} 43. Qd5 {[%clk 0:00:14.1]} 43... Bc3 {[%clk 0:00:04.9]} 44. Nd3
{[%clk 0:00:11]} 44... Qb6 {[%clk 0:00:04.2]} 45. Nc5 {[%clk 0:00:11]} 45... Bf6
{[%clk 0:00:03.5]} 46. Ne4 {[%clk 0:00:11]} 46... Bb2 {[%clk 0:00:03.1]} 47. Nc5
{[%clk 0:00:09.2]} 47... Bd4 {[%clk 0:00:03.5]} 48. Nd7 {[%clk 0:00:08.8]} 48...
Qa7 {[%clk 0:00:02.4]} 49. f4 {[%clk 0:00:06.2]} 49... Bc3 {[%clk 0:00:02.7]}
50. Kf3 {[%clk 0:00:06.3]} 50... Qc7 {[%clk 0:00:02.1]} 51. Ke4 {[%clk
0:00:06.3]} 51... Qd8 {[%clk 0:00:02.1]} 52. Ne5 {[%clk 0:00:05.1]} 52... Qe7
{[%clk 0:00:02.2]} 53. Kd3 {[%clk 0:00:04.6]} 53... Bxe5 {[%clk 0:00:01.6]} 54.
fxe5 {[%clk 0:00:05.5]} 54... Qe8 {[%clk 0:00:01.3]} 55. Qxa5 {[%clk 0:00:05.2]}
55... Qe6 {[%clk 0:00:01.9]} 56. Qxb4 {[%clk 0:00:04.4]} 56... Qf5+ {[%clk
0:00:02.7]} 57. Qe4 {[%clk 0:00:04.4]} 57... Qh3 {[%clk 0:00:02.9]} 58. Qe3
{[%clk 0:00:03.9]} 58... Qf1+ {[%clk 0:00:03.2]} 59. Kc3 {[%clk 0:00:03.8]}
59... Qa1+ {[%clk 0:00:03.2]} 60. Kb4 {[%clk 0:00:03.9]} 60... Qc1 {[%clk
0:00:02.7]} 61. Qxc1 {[%clk 0:00:02.4]} 1-0

[Event "Early-Titled-Tuesday-Blitz-April-23-2024"]
[Site "Chess.com"]
[Date "2024.04.23"]
[Round "8"]
[White "Martial2008"]
[Black "scarabee43"]
[Result "1/2-1/2"]
[WhiteElo "2692"]
[BlackElo "2827"]
[TimeControl "180+1"]
[EndTime "9:33:19 PDT"]
[Termination "Game drawn - insufficient material"]

1. d4 {[%clk 0:03:00.9]} 1... Nf6 {[%clk 0:02:59.9]} 2. Nf3 {[%clk 0:02:53.6]}
2... d5 {[%clk 0:02:58.9]} 3. Bf4 {[%clk 0:02:52.8]} 3... Nc6 {[%clk 0:02:43.9]}
4. e3 {[%clk 0:02:50.9]} 4... e6 {[%clk 0:02:42.6]} 5. c4 {[%clk 0:02:49.9]}
5... Bd6 {[%clk 0:02:42.2]} 6. Bg5 {[%clk 0:02:45.2]} 6... h6 {[%clk 0:02:41]}
7. Bh4 {[%clk 0:02:43.1]} 7... Be7 {[%clk 0:02:25.7]} 8. Nc3 {[%clk 0:02:42]}
8... O-O {[%clk 0:02:24.9]} 9. Be2 {[%clk 0:02:38.7]} 9... dxc4 {[%clk
0:02:22.4]} 10. Bxc4 {[%clk 0:02:38.6]} 10... a6 {[%clk 0:02:22.9]} 11. O-O
{[%clk 0:02:38.2]} 11... b5 {[%clk 0:02:23.1]} 12. Bd3 {[%clk 0:02:38.7]} 12...
Nb4 {[%clk 0:02:22.6]} 13. Bb1 {[%clk 0:02:36.5]} 13... Bb7 {[%clk 0:02:21.9]}
14. Bxf6 {[%clk 0:02:27.8]} 14... Bxf6 {[%clk 0:02:21.1]} 15. a3 {[%clk
0:02:28.5]} 15... Nd5 {[%clk 0:02:19]} 16. Ne4 {[%clk 0:02:28.8]} 16... Be7
{[%clk 0:02:17.2]} 17. Ba2 {[%clk 0:02:28.9]} 17... Nxe3 {[%clk 0:02:15.6]} 18.
fxe3 {[%clk 0:02:24.5]} 18... Bxe4 {[%clk 0:02:15.2]} 19. Rc1 {[%clk 0:02:25.1]}
19... Rc8 {[%clk 0:02:05.2]} 20. Ne5 {[%clk 0:02:23.1]} 20... Bg5 {[%clk
0:01:36.8]} 21. Nxf7 {[%clk 0:02:14.2]} 21... Rxf7 {[%clk 0:01:21.8]} 22. Bxe6
{[%clk 0:02:13.6]} 22... Bd5 {[%clk 0:01:10.6]} 23. Bxf7+ {[%clk 0:01:46]} 23...
Bxf7 {[%clk 0:01:11.2]} 24. Qf3 {[%clk 0:01:41.6]} 24... Bd5 {[%clk 0:01:09.3]}
25. Qg3 {[%clk 0:01:36.6]} 25... Qe7 {[%clk 0:01:07.5]} 26. Rfe1 {[%clk
0:01:29.3]} 26... c5 {[%clk 0:01:01.6]} 27. Rxc5 {[%clk 0:01:25.1]} 27... Rxc5
{[%clk 0:01:00.8]} 28. dxc5 {[%clk 0:01:26]} 28... Qxc5 {[%clk 0:01:00.5]} 29.
Qe5 {[%clk 0:01:26.3]} 29... Qc6 {[%clk 0:00:47.8]} 30. e4 {[%clk 0:01:19.4]}
30... Bb3 {[%clk 0:00:43.5]} 31. Qd4 {[%clk 0:01:14.5]} 31... Be7 {[%clk
0:00:31.5]} 32. Kh1 {[%clk 0:01:13.2]} 32... Qd6 {[%clk 0:00:25]} 33. Qe3 {[%clk
0:01:08.8]} 33... Bc4 {[%clk 0:00:24.7]} 34. e5 {[%clk 0:01:08.4]} 34... Qd3
{[%clk 0:00:23.7]} 35. Qa7 {[%clk 0:01:03.3]} 35... Qd2 {[%clk 0:00:24]} 36. Rg1
{[%clk 0:01:01.7]} 36... Bg5 {[%clk 0:00:23]} 37. Qxa6 {[%clk 0:00:55.5]} 37...
Bd5 {[%clk 0:00:16.4]} 38. Qc8+ {[%clk 0:00:55.2]} 38... Kf7 {[%clk 0:00:13.9]}
39. Rf1+ {[%clk 0:00:52.2]} 39... Bf4 {[%clk 0:00:13.1]} 40. Qf5+ {[%clk
0:00:50.7]} 40... Ke7 {[%clk 0:00:13.3]} 41. Rg1 {[%clk 0:00:46.6]} 41... Be3
{[%clk 0:00:13]} 42. Qg6 {[%clk 0:00:33.7]} 42... Bxg1 {[%clk 0:00:11.7]} 43.
Qxg7+ {[%clk 0:00:34.1]} 43... Kd8 {[%clk 0:00:11.5]} 44. Qf8+ {[%clk
0:00:32.9]} 44... Kc7 {[%clk 0:00:11.3]} 45. Qe7+ {[%clk 0:00:23.2]} 45... Kb6
{[%clk 0:00:11.5]} 46. Qd8+ {[%clk 0:00:21.6]} 46... Kc5 {[%clk 0:00:10.9]} 47.
Qc7+ {[%clk 0:00:15.3]} 47... Kd4 {[%clk 0:00:11.2]} 48. Qa7+ {[%clk 0:00:15.4]}
48... Kxe5 {[%clk 0:00:10.5]} 49. Qxg1 {[%clk 0:00:16]} 49... Qxb2 {[%clk
0:00:09.8]} 50. Qe3+ {[%clk 0:00:15.9]} 50... Kd6 {[%clk 0:00:07.7]} 51. Qxh6+
{[%clk 0:00:15.3]} 51... Kc5 {[%clk 0:00:08.4]} 52. Qe3+ {[%clk 0:00:15.4]}
52... Kc4 {[%clk 0:00:09]} 53. Qf4+ {[%clk 0:00:14.4]} 53... Kb3 {[%clk
0:00:08.8]} 54. Qg3+ {[%clk 0:00:14.5]} 54... Ka4 {[%clk 0:00:08.1]} 55. h4
{[%clk 0:00:15.1]} 55... Qxa3 {[%clk 0:00:07.9]} 56. Qf4+ {[%clk 0:00:14.4]}
56... Qb4 {[%clk 0:00:07.4]} 57. Qe3 {[%clk 0:00:12.6]} 57... Qe4 {[%clk
0:00:07.7]} 58. Qa7+ {[%clk 0:00:12.5]} 58... Kb3 {[%clk 0:00:07.5]} 59. Qf2
{[%clk 0:00:13.1]} 59... b4 {[%clk 0:00:06.1]} 60. h5 {[%clk 0:00:13.6]} 60...
Kc4 {[%clk 0:00:06.8]} 61. h6 {[%clk 0:00:13.5]} 61... b3 {[%clk 0:00:07.5]} 62.
Kh2 {[%clk 0:00:09.7]} 62... Qc2 {[%clk 0:00:07.3]} 63. Qxc2+ {[%clk 0:00:08.5]}
63... bxc2 {[%clk 0:00:07.8]} 64. h7 {[%clk 0:00:09.2]} 64... c1=Q {[%clk
0:00:08.4]} 65. h8=Q {[%clk 0:00:09.8]} 65... Qf4+ {[%clk 0:00:09.1]} 66. Kg1
{[%clk 0:00:08.5]} 66... Qg3 {[%clk 0:00:08.9]} 67. Qc8+ {[%clk 0:00:07]} 67...
Kd4 {[%clk 0:00:08.6]} 68. Qc2 {[%clk 0:00:06.3]} 68... Qe3+ {[%clk 0:00:06.2]}
69. Qf2 {[%clk 0:00:06]} 69... Qxf2+ {[%clk 0:00:03.9]} 70. Kxf2 {[%clk
0:00:06.9]} 70... Bxg2 {[%clk 0:00:04.5]} 1/2-1/2